bitfinex/quotes_ETHUSD_20250214
["timestamp","ask_amount","ask_price","bid_price","bid_amount"]
[1739549184413,1.5212,2741.8,2741.3,3.03647614]
[1739549184631,0.0499651,2741.7,2741.3,3.03647614]
[1739549184912,0.72602173,2741.5,2741.3,3.0]
[1739549185237,0.72220126,2741.5,2741.3,3.0]
[1739549185780,0.04968192,2741.4,2741.2,3.0]
[1739549186127,0.72220126,2741.5,2741.2,3.03647594]
[1739549186320,0.04974888,2741.3,2741.2,3.03647594]
[1739549186522,0.72220126,2741.5,2741.2,3.03647594]
[1739549186728,0.72220126,2741.5,2741.2,3.0]
[1739549186883,0.04808478,2741.4,2741.2,3.0]
[1739549187089,0.04808478,2741.4,2741.2,3.03647588]
[1739549187289,1.6562,2742.1,2741.2,3.03647588]
[1739549187518,1.6562,2742.1,2741.2,3.0]
[1739549187835,0.74363334,2741.7,2741.2,3.0]
[1739549188131,0.74363334,2741.7,2740.9,8.74]
[1739549188287,1.18272967,2741.7,2741.0,3.0]
[1739549188491,0.74363334,2741.7,2741.0,3.0]
[1739549188731,0.04820006,2741.6,2741.0,3.0]
[1739549188895,0.74363334,2741.7,2741.0,3.0]
[1739549189091,1.6562,2741.6,2741.0,3.0]
[1739549189297,3.64798,2741.3,2740.5,0.308]
[1739549189601,1.89618333,2741.6,2740.5,0.308]
[1739549189799,0.04778738,2741.2,2740.5,0.308]
[1739549190000,3.64772,2741.5,2740.5,0.308]
[1739549190218,1.6562,2740.9,2739.9,4.21337697]
[1739549190390,0.73392553,2740.7,2739.6,9.048]
[1739549190593,3.64891,2740.6,2739.6,0.308]
[1739549190804,0.97293808,2740.7,2739.6,3.308]
[1739549190805,4.62164808,2740.7,2739.6,3.308]
[1739549191000,0.73392553,2740.7,2739.6,3.308]
[1739549191226,0.04717518,2740.6,2739.6,0.308]
[1739549191545,5.30469,2740.9,2739.7,0.0075]
[1739549191753,1.6562,2740.9,2740.0,3.0075]
[1739549191954,0.71356101,2740.6,2740.2,0.0075]
[1739549192130,0.04736409,2740.8,2740.4,3.0075]
[1739549192295,5.30412,2741.3,2740.4,3.0075]
[1739549192494,3.64816,2741.2,2740.4,3.0075]
[1739549192702,5.30412,2741.3,2740.4,3.0075]
[1739549192955,1.6562,2741.3,2740.4,3.0075]
[1739549193302,5.30414,2741.3,2740.4,3.0075]
[1739549193465,0.04681887,2741.2,2740.8,3.0]
[1739549193610,1.6562,2741.7,2740.9,0.04397583]
[1739549193811,0.04554838,2741.6,2740.9,0.5575]
[1739549194061,0.04554838,2741.6,2740.8,4.8456]
[1739549194242,3.64765,2741.5,2740.8,3.308]
[1739549194414,0.72518539,2741.2,2740.8,3.308]
[1739549194814,0.04491675,2741.1,2740.9,0.03648043]
[1739549195165,0.04491675,2741.1,2741.0,1.5376]
[1739549195315,0.04491675,2741.1,2741.0,1.5451]
[1739549195669,0.736505,2741.4,2741.0,1.8456]
[1739549196335,3.64678,2742.2,2741.2,3.0]
[1739549196511,0.72796052,2741.6,2741.2,3.03647273]
[1739549196709,0.72796052,2741.6,2741.2,3.0]
[1739549196932,0.04544176,2741.5,2741.2,3.0]
[1739549197146,0.04544176,2741.5,2741.0,3.0]
[1739549198964,1.5132,2741.3,2740.9,8.74]
[1739549199122,3.64806,2741.2,2740.9,8.74]
[1739549199324,0.04604339,2741.2,2741.0,3.0]
[1739549199548,0.74592584,2741.1,2740.5,1.9559]
[1739549199746,0.74592584,2741.1,2740.5,0.308]
[1739549200063,4.39413584,2741.1,2740.5,0.308]
[1739549200355,3.69416459,2741.0,2740.4,3.0]
[1739549200560,3.69416459,2741.0,2740.3,4.21337697]
[1739549200561,3.64863,2740.8,2740.1,9.048]
[1739549200856,3.64891,2740.6,2740.1,0.308]
[1739549201056,0.04512416,2740.5,2740.1,0.308]
[1739549201261,7.29782,2740.6,2740.1,0.308]
[1739549201447,0.04512416,2740.5,2740.1,0.308]
[1739549201644,0.04512416,2740.5,2739.6,1.6479]
[1739549201645,3.64918,2740.4,2739.6,1.6479]
[1739549201856,0.04512222,2740.3,2739.7,0.308]
[1739549202258,5.16191,2740.7,2739.7,0.308]
[1739549202259,3.64907,2740.5,2739.7,0.308]
[1739549202423,0.04511713,2740.4,2739.7,0.308]
[1739549203158,0.7133132,2740.1,2739.6,3.0]
[1739549203463,0.7133132,2740.1,2739.5,12.95337697]
[1739549203464,1.5132,2740.0,2739.5,4.21337697]
[1739549203635,0.04413739,2739.9,2739.6,0.0075]
[1739549203836,0.7133132,2740.1,2739.6,3.0075]
[1739549204158,0.74689462,2740.2,2740.0,3.0]
[1739549204458,0.04452754,2740.1,2740.0,3.0]
[1739549204670,1.5132,2740.9,2740.0,3.04399249]
[1739549204844,0.71988348,2740.5,2740.1,1.6554]
[1739549205235,3.64738,2741.7,2740.4,3.0]
[1739549205236,1.5132,2741.2,2740.4,3.0]
[1739549205462,1.5132,2741.8,2740.9,1.6479]
[1739549205651,1.5132,2741.8,2741.2,3.0]
[1739549205849,0.73849926,2741.3,2740.9,3.0]
[1739549206160,0.73849926,2741.3,2740.8,0.308]
[1739549206361,0.73849926,2741.3,2740.4,0.0075]
[1739549206668,0.73849926,2741.3,2740.4,3.0]
[1739549206876,0.73849926,2741.3,2740.5,0.308]
[1739549207237,0.73849926,2741.3,2740.6,0.03648012]
[1739549207746,0.72897326,2741.3,2740.6,0.03648012]
[1739549207960,0.72897326,2741.3,2740.9,0.0075]
[1739549208295,0.04493008,2741.2,2741.1,0.0075]
[1739549208779,0.72032675,2741.5,2741.2,3.0]
[1739549208943,1.5132,2742.1,2741.2,3.0]
[1739549209150,0.71302639,2741.6,2741.2,3.0]
[1739549209345,1.5132,2742.4,2741.6,3.0]
[1739549209556,1.6637034,2742.8,2742.0,3.0]
[1739549210372,0.74777612,2742.3,2742.0,3.0]
[1739549211373,0.74777612,2742.3,2741.7,1.6479]
[1739549211532,0.74777612,2742.3,2741.9,0.307]
[1739549211934,0.04325764,2742.2,2742.0,3.03646594]
[1739549212138,0.04325764,2742.2,2742.1,1.5496]
[1739549212860,0.72149481,2742.5,2742.1,1.5496]
[1739549213177,0.04331309,2742.4,2742.1,1.5496]
[1739549213377,0.04331309,2742.4,2742.3,7.21337697]
[1739549213694,0.71207734,2742.7,2742.3,4.21337697]
[1739549213873,0.1505034,2742.8,2742.3,4.21337697]
[1739549214044,0.04192643,2742.7,2742.3,4.21337697]
[1739549214248,0.1505034,2742.8,2742.3,4.21337697]
[1739549214449,0.04192643,2742.7,2742.3,4.21337697]
[1739549214649,0.86864004,2742.8,2742.3,4.21337697]
[1739549214861,0.04041605,2742.7,2742.3,4.21337697]
[1739549215177,0.86864004,2742.8,2742.3,4.21337697]
[1739549215559,0.04029703,2742.7,2742.3,4.21337697]
[1739549215878,0.86864004,2742.8,2742.3,4.21337697]
[1739549216188,0.0389558,2742.7,2742.3,4.21337697]
[1739549216478,0.86864004,2742.8,2742.3,0.307]
[1739549216677,0.03743195,2742.7,2742.2,12.047]
[1739549216982,1.63103195,2742.7,2742.2,11.74]
[1739549217163,2.24558315,2742.7,2742.2,11.74]
[1739549217364,5.89162315,2742.7,2742.2,8.74]
[1739549217579,2.24558315,2742.7,2742.2,8.74]
[1739549217886,2.24558315,2742.7,2742.0,0.307]
[1739549218085,1.63103195,2742.7,2742.0,0.307]
[1739549218281,1.63103195,2742.7,2742.0,3.307]
[1739549219069,1.63103195,2742.7,2742.1,0.0364636]
[1739549219281,0.72096391,2742.6,2742.4,3.0]
[1739549219609,0.03784606,2742.5,2742.0,3.0]
[1739549220678,0.03784606,2742.5,2742.0,11.74]
[1739549220882,0.1505034,2742.8,2742.4,3.0]
[1739549221076,0.03686812,2742.7,2742.1,0.307]
[1739549221384,3.6465,2742.4,2741.5,4.21337697]
[1739549221699,3.68301473,2742.3,2741.6,3.86265266]
[1739549221899,7.32967473,2742.3,2741.7,3.0]
[1739549222100,3.64721,2741.9,2741.0,3.86265266]
[1739549222301,5.27667394,2741.8,2741.0,4.16965266]
[1739549222467,2.36456156,2741.8,2741.0,4.16965266]
[1739549222799,2.36456156,2741.8,2741.1,3.0]
[1739549223207,2.36456156,2741.8,2741.3,3.86265266]
[1739549223603,2.32871762,2741.8,2741.4,3.0]
[1739549223899,0.0355568,2741.7,2741.0,0.307]
[1739549224216,0.0355568,2741.7,2741.0,3.307]
[1739549224589,2.32871762,2741.8,2741.0,3.307]
[1739549224770,0.03515402,2741.6,2741.0,3.307]
[1739549224971,0.03524838,2741.7,2741.0,3.307]
[1739549225171,3.64753,2741.6,2741.0,3.307]
[1739549225391,4.24515476,2741.6,2740.8,0.307]
[1739549225595,0.03505966,2741.5,2740.9,0.03648081]
[1739549225827,0.03505966,2741.5,2740.8,0.307]
[1739549226104,0.03496178,2741.4,2740.8,0.307]
[1739549226314,1.5504,2741.3,2740.8,0.307]
[1739549226676,0.03477302,2741.2,2740.8,0.307]
[1739549226869,1.5504,2741.3,2740.8,0.307]
[1739549227106,0.03477302,2741.2,2740.8,0.307]
[1739549228017,0.72657199,2740.9,2740.6,3.0]
[1739549228511,3.64904,2740.5,2739.6,8.74]
[1739549228677,3.64904,2740.5,2739.6,0.307]
[1739549229125,1.5504,2740.4,2739.6,0.307]
[1739549229405,1.5504,2740.8,2739.7,12.95364442]
[1739549229641,1.5504,2740.8,2740.1,4.21364442]
[1739549229783,0.72657199,2740.9,2740.2,4.6636]
[1739549230113,0.72657199,2740.9,2740.2,13.4036]
[1739549230795,0.72657199,2740.9,2740.6,3.0]
[1739549231096,3.83274607,2742.2,2740.6,3.0]
[1739549231097,1.5504,2741.7,2740.8,1.6636]
[1739549231297,1.5504,2741.7,2740.9,7.25012087]
[1739549231500,1.5504,2741.7,2740.9,7.21364442]
[1739549231796,1.5504,2741.7,2740.9,15.95364442]
[1739549231991,1.5504,2742.1,2741.0,0.0075]
[1739549232197,0.74374764,2741.8,2741.1,0.03647059]
[1739549232381,0.74374764,2741.8,2741.0,0.0075]
[1739549232572,0.74374764,2741.8,2741.1,3.03647155]
[1739549232773,0.74374764,2741.8,2741.1,0.03647155]
[1739549232971,0.74374764,2741.8,2741.0,3.0075]
[1739549233600,0.74374764,2741.8,2741.1,0.307]
[1739549234507,1.5504,2742.1,2741.1,15.73914412]
[1739549234683,1.5504,2742.1,2741.1,16.25267]
[1739549234891,1.5504,2742.1,2741.1,13.7181]
[1739549235215,0.7457919,2741.9,2741.1,12.047]
[1739549238215,1.7009034,2742.8,2741.9,4.6636]
[1739549238384,1.7009034,2742.8,2742.3,3.0]
[1739549238578,0.1505034,2742.8,2742.7,3.0]
[1739549239290,0.1505034,2742.8,2742.7,0.307]
[1739549239486,0.1505034,2742.8,2742.4,3.307]
[1739549239675,1.5504,2742.7,2742.4,3.307]
[1739549240108,1.5504,2742.7,2742.4,3.0]
[1739549240324,1.5504,2742.7,2741.9,3.0]
[1739549240491,1.5504,2742.7,2741.9,3.307]
[1739549240677,1.5504,2742.7,2741.9,4.9706]
[1739549240876,1.5504,2742.7,2742.0,0.0364622]
[1739549241088,0.1505034,2742.8,2742.3,3.0]
[1739549241305,0.1505034,2742.8,2742.4,0.03645692]
[1739549241814,0.1505034,2742.8,2742.3,3.0]
[1739549243013,0.1505034,2742.8,2742.4,0.307]
[1739549244912,1.5491,2742.7,2742.0,3.0]
[1739549245712,0.7278272,2742.5,2742.0,3.0]
[1739549245975,5.19555,2742.4,2741.8,0.307]
[1739549246093,3.64674,2742.2,2741.6,0.307]
[1739549246290,5.925159,2742.2,2741.6,0.307]
[1739549246496,3.64686,2742.1,2741.6,0.307]
[1739549246699,1.5491,2742.0,2741.6,0.307]
[1739549246922,5.19608,2742.0,2741.0,4.21364442]
[1739549247122,1.5491,2742.0,2741.0,4.21364442]
[1739549247285,1.5491,2742.0,2741.1,0.0364772]
[1739549247701,5.19608,2742.0,2741.0,4.21364442]
[1739549247984,5.19607,2742.0,2741.1,3.03647692]
[1739549248406,1.5491,2742.0,2741.1,3.03647692]
[1739549248820,5.19609,2742.0,2741.1,3.0]
[1739549249030,8.84315,2742.0,2741.1,3.0]
[1739549249314,5.19609,2742.0,2741.1,3.0]
[1739549249486,3.64711,2741.9,2741.1,3.0]
[1739549250320,1.5491,2742.0,2741.1,3.0]
[1739549250486,5.19607,2742.0,2741.1,3.0]
[1739549250687,5.715677,2742.0,2741.1,3.0]
[1739549250899,0.73877087,2741.4,2741.1,3.0]
[1739549251710,1.5491,2741.3,2741.1,3.0]
[1739549252028,1.5491,2741.3,2740.6,4.21364442]
[1739549252198,1.5491,2741.3,2740.3,1.5627]
[1739549252403,1.5491,2741.3,2740.4,0.307]
[1739549253122,1.5491,2741.3,2740.3,3.0]
[1739549253312,1.5491,2741.2,2740.4,0.307]
[1739549253894,0.73648434,2740.7,2740.4,0.307]
[1739549254625,0.73648434,2740.7,2740.3,3.307]
[1739549257691,0.73648434,2740.7,2740.3,4.17307717]
[1739549259361,1.5006,2740.6,2740.1,3.0]
[1739549259631,1.5006,2740.6,2740.1,0.307]
[1739549259853,1.5006,2740.6,2740.1,3.307]
[1739549260031,1.5006,2740.6,2740.0,4.17307717]
[1739549260530,1.5006,2740.6,2740.4,3.0]
[1739549262713,1.5006,2741.3,2740.4,11.77648891]
[1739549262944,1.5006,2742.1,2741.3,3.0]
[1739549263117,1.5006,2742.1,2741.9,3.0]
[1739549264006,0.39376095,2742.8,2741.9,3.0]
[1739549264007,1.5006,2742.5,2741.9,3.0]
[1739549264647,0.74267418,2742.0,2741.9,3.0]
[1739549265112,1.5006,2741.9,2741.5,3.86607717]
[1739549265562,1.5006,2741.9,2741.6,3.0]
[1739549265764,1.5006,2741.9,2741.2,0.307]
[1739549266632,1.72492742,2741.9,2741.1,3.0]
[1739549266830,1.72492742,2741.9,2741.0,4.52033455]
[1739549267334,1.72492742,2741.9,2741.1,3.0]
[1739549267645,1.5006,2741.9,2741.1,3.0]
[1739549267975,0.74379199,2741.8,2741.2,4.6441]
[1739549268171,0.74379199,2741.8,2741.6,3.0]
[1739549269592,1.5006,2741.7,2741.2,3.307]
[1739549270806,1.5006,2741.7,2741.2,3.0]
[1739549271031,0.2244392,2741.6,2740.7,4.52033455]
[1739549271190,1.5006,2741.7,2740.8,3.0]
[1739549272558,5.25122,2741.6,2740.7,4.52033455]
[1739549272979,1.6037,2741.6,2740.8,3.0]
[1739549273531,1.6037,2741.6,2741.2,3.0]
[1739549273653,9.327532,2742.5,2741.3,0.03647533]
[1739549273853,2.9010782,2742.4,2741.3,0.03647533]
[1739549274172,0.72905188,2741.5,2741.2,3.0]
[1739549275572,0.72905188,2741.5,2741.2,3.307]
[1739549278988,0.72905188,2741.5,2741.2,3.0]
[1739549279564,1.6037,2741.9,2741.3,0.03647716]
[1739549280081,0.73437893,2741.6,2741.2,3.0]
[1739549281618,0.73437893,2741.6,2741.2,6.64796]
[1739549281780,0.73437893,2741.6,2741.2,6.64794]
[1739549282127,1.6037,2741.9,2741.2,4.5644]
[1739549282917,1.6037,2741.6,2740.8,8.74]
[1739549283116,0.23228367,2741.5,2740.8,8.74]
[1739549283839,0.23228367,2741.5,2740.9,3.0]
[1739549284040,1.6037,2741.6,2740.9,0.0364831]
[1739549284206,1.6037,2741.6,2740.7,10.86202455]
[1739549284540,1.6037,2741.6,2740.7,3.0]
[1739549284724,3.64751,2741.6,2740.7,3.0]
[1739549284890,5.25143,2741.5,2740.7,3.0]
[1739549285085,0.74709057,2740.8,2740.7,3.0]
[1739549285316,0.74709057,2740.8,2740.3,4.21333455]
[1739549285519,0.74709057,2740.8,2740.4,3.0364874]
[1739549285835,0.74709057,2740.8,2740.4,38.0364874]
[1739549286016,0.74709057,2740.8,2740.4,38.0]
[1739549286390,0.74709057,2740.8,2740.4,35.0]
[1739549286735,0.98064963,2740.8,2740.4,35.0]
[1739549287037,0.74709057,2740.8,2740.2,0.307]
[1739549287540,0.74709057,2740.8,2740.3,3.0]
[1739549287748,0.74709057,2740.8,2740.3,6.86634876]
[1739549288287,3.64884,2740.6,2739.9,8.74]
[1739549288593,3.64924,2740.3,2739.8,0.7496]
[1739549288785,3.64952,2740.1,2739.2,0.307]
[1739549289011,3.64986,2739.9,2738.9,0.307]
[1739549289198,3.65004,2739.7,2738.9,0.307]
[1739549289415,1.6471,2739.6,2738.9,0.307]
[1739549289809,2.176811,2739.6,2738.9,0.307]
[1739549290214,1.6471,2739.5,2738.9,0.307]
[1739549290408,0.72263471,2739.3,2738.2,9.047]
[1739549290609,0.72263471,2739.3,2738.3,42.55475359]
[1739549290844,0.72263471,2739.3,2738.7,3.0]
[1739549291699,0.72263471,2739.3,2738.9,3.0]
[1739549291848,0.72263471,2739.3,2738.8,3.0]
[1739549292179,1.6471,2740.2,2739.1,3.0]
[1739549292388,0.73015455,2739.6,2739.1,11.74]
[1739549292583,0.73015455,2739.6,2739.3,3.0]
[1739549293605,0.73015455,2739.6,2739.5,3.0]
[1739549293810,0.73015455,2739.6,2739.2,9.047]
[1739549293811,0.73015455,2739.6,2739.3,3.0]
[1739549294220,0.73015455,2739.6,2739.5,38.0]
[1739549294508,2.37725455,2739.6,2739.5,3.0]
[1739549294660,2.61498001,2739.6,2739.2,8.74]
[1739549294878,6.26515001,2739.6,2739.2,8.16752289]
[1739549295056,1.6471,2739.5,2739.2,8.16752289]
[1739549295266,1.6471,2739.5,2738.3,1.504]
[1739549295267,1.6471,2739.3,2738.0,8.77582289]
[1739549295513,1.6471,2739.3,2737.8,4.22097724]
[1739549295514,3.65078,2739.2,2738.4,0.307]
[1739549295727,3.6511,2738.9,2738.1,42.27182289]
[1739549295868,1.6471,2738.8,2738.1,35.0]
[1739549296579,0.72260203,2738.5,2737.8,0.307]
[1739549296979,1.6471,2738.4,2737.1,7.27182289]
[1739549297185,0.2369702,2738.3,2737.2,7.57882289]
[1739549297383,1.6471,2738.2,2737.1,7.27182289]
[1739549297619,1.6471,2738.2,2737.2,35.0]
[1739549298215,1.6471,2738.2,2737.3,3.0]
[1739549298422,1.6471,2738.2,2737.1,7.57882289]
[1739549298601,0.71252227,2737.7,2737.1,7.57882289]
[1739549298845,1.6471,2737.6,2737.2,35.0]
[1739549299164,1.6471,2737.6,2737.0,7.27182289]
[1739549299165,1.88306223,2737.6,2737.0,7.27182289]
[1739549299462,1.88306223,2737.6,2737.1,38.0]
[1739549299753,1.6471,2737.6,2737.1,38.0]
[1739549300102,1.6471,2737.6,2737.1,3.0]
[1739549302337,0.74594953,2737.2,2737.1,3.0]
[1739549303755,0.74594953,2737.2,2736.3,3.0]
[1739549303957,1.6136,2737.1,2736.2,7.57882289]
[1739549304168,0.23595495,2737.0,2736.3,35.0]
[1739549304465,1.6136,2736.8,2736.0,0.00954445]
[1739549304808,1.6136,2736.8,2736.1,3.0]
[1739549305111,1.6136,2736.7,2736.0,0.00954445]
[1739549305522,0.74785004,2736.3,2736.0,0.00954445]
[1739549305859,1.6136,2736.7,2736.0,7.28136734]
[1739549306155,1.6136,2736.7,2736.1,3.0]
[1739549306377,0.71312921,2736.4,2736.1,3.0]
[1739549307069,0.55,2737.4,2736.1,3.0]
[1739549307070,1.6136,2737.4,2736.2,3.65469]
[1739549307238,1.6136,2737.5,2736.3,3.0]
[1739549307439,1.6136,2736.7,2736.3,3.0]
[1739549307637,0.23313343,2736.6,2736.0,0.00954445]
[1739549308441,1.6136,2736.5,2736.0,0.00954445]
[1739549308680,1.6136,2736.3,2736.0,0.00954445]
[1739549310038,3.65465,2736.3,2736.0,0.00954445]
[1739549310231,1.6136,2736.2,2736.0,0.00954445]
[1739549310441,0.526825,2736.1,2736.0,0.00954445]
[1739549310868,1.2506795,2736.1,2736.0,0.00954445]
[1739549311278,0.7238545,2736.1,2736.0,0.00954445]
[1739549312155,1.6136,2736.5,2736.0,3.00954445]
[1739549313484,1.6136,2736.5,2735.7,7.27182289]
[1739549313485,0.72955817,2736.3,2735.7,7.27182289]
[1739549314517,0.72955817,2736.3,2735.8,3.0]
[1739549315258,0.96387399,2736.3,2735.8,3.0]
[1739549315560,0.96387399,2736.3,2735.7,7.27182289]
[1739549315758,1.5018,2736.2,2735.7,7.27182289]
[1739549316006,5.15652,2736.2,2735.8,3.0]
[1739549316164,1.5018,2736.2,2735.8,3.0]
[1739549316379,5.15658,2736.2,2735.7,7.27182289]
[1739549316700,4.38412817,2736.3,2734.7,3.88051322]
[1739549316701,5.15693,2735.9,2734.7,3.88051322]
[1739549316901,1.5018,2735.9,2734.7,7.53721322]
[1739549317102,1.5018,2735.8,2734.8,0.307]
[1739549317273,1.5018,2735.7,2734.5,1.5128]
[1739549317616,3.66303,2735.6,2734.5,1.8198]
[1739549317781,1.5018,2735.4,2734.4,3.88051322]
[1739549317987,0.71313372,2734.9,2734.2,8.78462289]
[1739549318212,0.71313372,2734.9,2734.1,12.28433611]
[1739549318213,1.5018,2734.8,2734.1,12.28433611]
[1739549318397,1.5018,2734.8,2734.1,0.825]
[1739549318781,0.72834723,2734.2,2734.1,0.825]
[1739549318980,1.5018,2734.8,2734.1,0.825]
[1739549319410,0.74473102,2734.4,2734.1,0.825]
[1739549320816,0.49433102,2734.4,2734.1,0.825]
[1739549322094,1.5018,2734.8,2734.2,3.0]
[1739549322501,0.71518169,2734.5,2734.2,3.0]
[1739549325110,2.21698169,2734.5,2734.1,0.825]
[1739549326043,2.43867986,2734.5,2734.1,0.825]
[1739549327643,0.93687986,2734.5,2734.1,0.825]
[1739549327808,1.5018,2734.4,2734.1,0.825]
[1739549328805,3.6573,2734.3,2734.1,0.825]
[1739549329005,5.16667,2734.2,2734.1,0.825]
[1739549329445,2.0593,2734.2,2734.1,0.825]
[1739549329854,1.5018,2734.2,2734.1,0.825]
[1739549330443,0.71518169,2734.5,2734.1,0.825]
[1739549330646,0.71518169,2734.5,2734.2,3.0]
[1739549330647,1.26821813,2734.5,2734.2,3.0]
[1739549330817,1.26821813,2734.5,2734.1,0.825]
[1739549330818,1.5368,2734.4,2734.1,0.825]
[1739549331533,5.19392,2734.4,2734.1,0.825]
[1739549331732,1.5443,2734.2,2733.2,5.39331322]
[1739549331949,1.5368,2734.0,2732.9,5.53651322]
[1739549332150,1.5368,2733.2,2732.1,0.005]
[1739549332373,1.5368,2732.4,2732.1,0.005]
[1739549332529,1.51715623,2732.4,2731.8,0.1505034]
[1739549333056,0.72838131,2732.1,2731.8,0.1505034]
[1739549333768,4.38858131,2732.1,2731.8,0.1505034]
[1739549334065,0.55,2731.9,2731.8,0.1505034]
[1739549334251,0.80487413,2732.0,2731.8,0.1505034]
[1739549334449,0.72838131,2732.1,2731.8,0.1505034]
[1739549335661,1.5368,2732.0,2731.8,0.1505034]
[1739549337168,0.72838131,2732.1,2731.8,0.1505034]
[1739549337328,1.5368,2732.4,2731.8,3.1505034]
[1739549337528,1.5368,2732.7,2731.8,4.8065034]
[1739549337854,1.5368,2733.0,2732.4,3.0]
[1739549339139,0.72215958,2732.8,2732.4,3.0]
[1739549339463,0.72215958,2732.8,2731.9,10.93216289]
[1739549339464,0.72215958,2732.8,2731.7,3.88051322]
[1739549339636,1.5443,2732.7,2731.8,0.1505034]
[1739549340056,3.65954,2732.6,2731.8,0.1505034]
[1739549340381,1.5368,2732.4,2731.8,0.1505034]
[1739549340779,1.5368,2732.4,2731.8,3.1505034]
[1739549340958,0.74989562,2732.2,2731.8,3.1505034]
[1739549341287,0.74989562,2732.2,2731.8,0.1505034]
[1739549341580,0.74989562,2732.2,2731.1,1.656]
[1739549341581,0.74989562,2732.2,2731.1,5.53651322]
[1739549341784,0.97856518,2732.2,2731.1,9.19803322]
[1739549341945,0.97856518,2732.2,2731.4,3.88051322]
[1739549342148,4.63863518,2732.2,2731.2,3.0]
[1739549342338,1.5368,2732.0,2731.2,3.0]
[1739549342758,1.5368,2732.0,2731.1,5.53651322]
[1739549342960,1.5368,2732.7,2731.7,3.88051322]
[1739549343189,0.74550127,2732.2,2731.8,3.0]
[1739549343374,1.5368,2732.1,2731.2,3.0]
[1739549343576,0.74550127,2732.2,2731.5,3.0]
[1739549343891,0.74550127,2732.2,2731.2,0.307]
[1739549344101,0.18500207,2732.7,2731.7,3.88051322]
[1739549344262,1.5368,2732.6,2731.5,1.963]
[1739549344593,3.6598,2732.4,2731.4,3.88051322]
[1739549344776,3.06765362,2732.3,2731.3,0.307]
[1739549344961,6.72766362,2732.3,2731.3,0.307]
[1739549345162,3.06765362,2732.3,2731.3,0.307]
[1739549345379,3.66056,2731.9,2730.8,5.53651322]
[1739549345563,1.5368,2731.7,2730.8,1.656]
[1739549345776,1.5368,2731.7,2730.9,3.0]
[1739549346089,2.057275,2731.7,2730.9,3.0]
[1739549346263,0.0075,2731.6,2730.8,3.88051322]
[1739549346757,0.73076021,2731.3,2730.8,3.88051322]
[1739549347288,0.73076021,2731.3,2730.9,3.0]
[1739549347776,0.73076021,2731.3,2730.6,7.24598743]
[1739549347962,1.5368,2731.7,2730.6,4.24598743]
[1739549348165,1.76161977,2731.7,2730.7,3.0]
[1739549348760,0.72834241,2731.4,2730.7,3.0]
[1739549349290,1.6281,2731.3,2730.4,0.55]
[1739549349650,0.72834241,2731.4,2730.4,0.55]
[1739549349651,1.6281,2731.1,2730.4,0.55]
[1739549349855,0.52895,2731.0,2730.4,0.55]
[1739549350110,4.21917,2731.0,2730.4,0.55]
[1739549350306,1.6281,2730.9,2730.4,0.55]
[1739549350465,2.3448663,2730.9,2730.4,0.55]
[1739549351363,0.72013656,2731.2,2730.5,0.307]
[1739549351780,1.6281,2731.6,2730.6,3.0]
[1739549352106,1.6281,2732.3,2731.1,4.5144]
[1739549352398,0.74512044,2732.1,2731.6,3.0]
[1739549352696,0.74512044,2732.1,2731.2,3.0]
[1739549352896,1.6281,2732.0,2731.2,3.0]
[1739549353065,1.6281,2732.0,2730.7,9.42236743]
[1739549353259,1.6356,2731.7,2730.4,2.0644]
[1739549353452,4.21869,2731.4,2730.4,0.55]
[1739549353681,1.6281,2730.8,2730.4,0.55]
[1739549353882,0.0075,2730.9,2730.4,0.55]
[1739549353883,1.6281,2730.5,2730.4,0.55]
[1739549354199,3.66255,2730.4,2729.3,1.5144]
[1739549354371,1.6281,2730.5,2729.5,4.24598743]
[1739549354691,1.6281,2730.5,2729.6,0.03663164]
[1739549354993,1.6281,2730.5,2729.6,3.03663126]
[1739549355206,2.37303885,2730.5,2729.5,7.90963743]
[1739549355362,0.23730389,2730.4,2729.6,3.0]
[1739549356405,0.55,2730.3,2729.3,1.5144]
[1739549356767,3.89984389,2730.4,2729.1,0.1505034]
[1739549356768,4.21289,2730.1,2729.1,0.1505034]
[1739549357106,5.29148,2729.8,2729.1,0.1505034]
[1739549357313,5.29139,2729.8,2729.1,0.1505034]
[1739549357479,1.6281,2729.8,2729.1,0.1505034]
[1739549357899,5.29138,2729.8,2729.1,0.1505034]
[1739549358216,0.7147515,2729.5,2729.1,0.1505034]
[1739549359110,0.55,2729.4,2729.1,0.1505034]
[1739549359281,0.7147515,2729.5,2729.1,0.1505034]
[1739549360405,1.6281,2729.2,2729.1,0.1505034]
[1739549360969,5.85717,2729.2,2729.1,0.1505034]
[1739549361197,6.683991,2729.2,2729.1,0.1505034]
[1739549361890,6.126491,2729.2,2729.1,0.1505034]
[1739549362068,2.462421,2729.2,2729.1,0.1505034]
[1739549362603,5.17437,2729.2,2729.1,0.1505034]
[1739549362806,1.5028,2729.0,2727.1,7.91775743]
[1739549363127,1.5028,2728.4,2727.1,7.91775743]
[1739549363287,0.01964378,2728.3,2727.3,3.6666]
[1739549363472,0.01964378,2728.3,2727.5,4.24598743]
[1739549363820,0.01964378,2728.3,2727.5,7.91225743]
[1739549363974,0.01964378,2728.3,2727.5,4.24598743]
[1739549364182,0.01964378,2728.3,2727.6,3.0]
[1739549365372,0.24394675,2728.3,2727.6,3.0]
[1739549365674,1.5028,2728.2,2727.1,4.25098743]
[1739549365983,0.01964378,2728.1,2727.2,3.0]
[1739549366597,0.01964378,2728.1,2727.2,6.66676]
[1739549366817,0.01964378,2728.1,2727.6,3.0]
[1739549366976,0.01964378,2728.1,2727.4,6.66648]
[1739549367477,0.01964378,2728.1,2728.0,3.0]
[1739549367816,0.01964378,2728.1,2728.0,8.36083429]